Cogmind - Beta 17.1 @@@ ROGUE MODE // 2026.09.05 @ 17:41:43 Player: Xcalibur Result: Self-destructed Performance ------------- Evolutions (4) 2000 Regions Visited (4) 800 Robots Destroyed (31) 155 Value Destroyed (928) 928 Prototype IDs (0) 0 Alien Tech Used (0) 0 Bonus (800) 800 TOTAL SCORE: 4683 Bonus ------- Registered with UFD 300 Met Optimus in HQ 500 Cogmind --------- Core Integrity 750/850 Matter 238/300 Energy 200/200 System Corruption 2% Temperature Cool (0) Movement Rolling (110) Ox2 Location -6/Factory Parts ------- > --- POWER (1) -------- Subdweller Power Source > --- PROPULSION (6) --- Light Treads Light Treads Light Treads Improved Treads Armored Wheel Armored Wheel > --- UTILITY (6) ------ Advanced Heat Sink Large Storage Unit Advanced Targeting Computer Improved Medium Armor Plating Improved Medium Armor Plating Improved Medium Armor Plating > --- WEAPON (2) ------- Gatling Laser Coil Gun > --- INVENTORY (15) --- Light Treads Armored Wheel High-capacity Storage Unit IFF Parser Seismic Detector Improved Medium Armor Plating A0-MCA's Component Scanner Thermic Laser Heavy Particle Cannon Flak Gun Mini Grenade Launcher CPS Tube (2) Powered Hammer DRS Beacon (Ready) Botcube Peak State ------------ > --- POWER ------------ Subdweller Power Source > --- PROPULSION ------- Light Treads Light Treads Light Treads Improved Treads Armored Wheel Armored Wheel > --- UTILITY ---------- Advanced Heat Sink Large Storage Unit Advanced Targeting Computer Improved Medium Armor Plating Improved Medium Armor Plating Improved Medium Armor Plating > --- WEAPON ----------- Gatling Laser Coil Gun > --- INVENTORY -------- Light Treads Light Treads Light Treads Armored Wheel High-capacity Storage Unit IFF Parser Seismic Detector A0-MCA's Component Scanner Heavy Particle Cannon Flak Gun Mini Grenade Launcher CPS Tube Powered Hammer DRS Beacon Botcube [Rating: 46] Favorites ----------- Power Ion Engine Engine Ion Engine Propulsion Light Treads Treads Light Treads Leg Aluminum Leg Wheel Armored Wheel Utility Large Storage Unit Device Seismic Detector Storage Large Storage Unit Processor Advanced Targeting Computer Protection Medium Insulated Plating Weapon Subdweller Machine Gun Energy Gun Subdweller Laser Ballistic Gun Subdweller Machine Gun Build | -11 -10 -10 -9 -6 ------- Run | Yrd Mat Sub Scr Fac Slots Evolved 8 | . . . . 8 Power . | . . . . . Propulsion 4 | . . . . 4 Utility 4 | . . . . 4 Weapon . | . . . . . Parts Attached 43 | 4 6 8 5 20 Power 4 | . . 2 1 1 Engine 4 | . . 2 1 1 Core . | . . . . . Reactor . | . . . . . Propulsion 13 | 2 1 3 1 6 Treads 10 | 2 1 2 1 4 Leg . | . . . . . Wheel 3 | . . 1 . 2 Hover . | . . . . . Flight . | . . . . . Utility 18 | 1 3 1 2 11 Device 6 | 1 2 . . 3 Storage 4 | . 1 1 2 . Processor 1 | . . . . 1 Hackware . | . . . . . Protection 7 | . . . . 7 Artifact . | . . . . . Weapon 8 | 1 2 2 1 2 Energy Gun 2 | . . . 1 1 Energy Cannon . | . . . . . Ballistic Gun 6 | 1 2 2 . 1 Ballistic Cannon . | . . . . . Launcher . | . . . . . Special Weapon . | . . . . . Impact Weapon . | . . . . . Slashing Weapon . | . . . . . Piercing Weapon . | . . . . . Special Melee Weapon . | . . . . . Unidentified Prototypes . | . . . . . Parts Lost 10 | . . 7 . 3 Power 3 | . . 2 . 1 Propulsion 3 | . . 3 . . Utility 2 | . . 1 . 1 Weapon 2 | . . 1 . 1 Highest Loss Streak 3 | . . 3 . 1 To Critical Strikes 1 | . . 1 . . Average Backups 13 | 6 11 14 14 12 Power 1 | 1 2 1 1 . Propulsion 3 | 2 2 5 4 2 Utility 3 | . 2 3 4 4 Weapon 3 | 1 4 4 3 4 Tool/Special . | . . . . . Unused Backups 24 | 1 3 1 7 12 Power 2 | 1 . . 1 . Propulsion 3 | . . . 1 2 Utility 8 | . 2 . 3 3 Weapon 10 | . 1 1 2 6 Tool/Special 1 | . . . . 1 Average Slot Usage (%) 99 | . 99 98 99 97 Engine 12 | . 14 13 14 6 Treads 27 | . 28 26 27 25 Wheel 2 | . . . . 12 Device 4 | . 14 8 . 12 Storage 22 | . 14 19 28 7 Protection 1 | . . . . 10 Energy Gun 5 | . 10 . 4 6 Ballistic Gun 20 | . 17 28 23 6 Peak Build Rating 46 | 7 10 11 14 46 Average Rating 13 | 6 8 9 11 39 On Entrance 9 | 6 7 8 11 14 Avg Prop Armor Cover (%) 19 | . . . . 19 Naked Turns . | . . . . . Heaviest Build 57 | 13 28 33 57 56 Greatest Support 40 | 40 40 40 40 24 Greatest Overweight (x) 2 | . . 1 1 2 Average Overweight (x) . | . . . . 1 Largest Inventory Capacity 20 | 8 15 15 20 20 Average Capacity 14 | 8 13 15 15 15 Most Carried 19 | 8 15 15 19 18 Average Carried 13 | 6 11 14 15 14 Final Capacity 20 | 8 15 15 20 15 Final Carried 19 | 7 15 15 19 15 Class Distribution -------------------- 83% | Mutant 12% | Derelict-Mutant 3% | Scavenger-Mutant Dominant Class ---------------- Mutant | -10/Materials Mutant | -10/Subcaves Mutant | -9/Scraptown Derelict-Mutant | -6/Factory Resources | -11 -10 -10 -9 -6 ----------- Run | Yrd Mat Sub Scr Fac Matter Collected 1051 | 255 221 225 70 280 Remotely . | . . . . . Salvage Created 1202 | 184 325 184 . 509 Parts 72 | 12 25 12 . 23 Haulers Intercepted 2 | . 2 . . . Recyclers Shooed 2 | . 2 . . . Parts Field Recycled . | . . . . . Retrieved Matter . | . . . . . Parts Self-Destructed 1 | . . 1 . . Prevented . | . . . . . Parts Restored . | . . . . . Kills | -11 -10 -10 -9 -6 ------- Run | Yrd Mat Sub Scr Fac Combat Hostiles Destroyed 21 | . 8 4 . 9 Guns 21 | . 8 4 . 9 Classes Destroyed 11 | 2 4 1 . 4 Worker 1 | . . . . 1 Tunneler 5 | 4 . . . 1 Hauler 2 | . 2 . . . Recycler 1 | 1 . . . . Watcher 1 | . 1 . . . Swarmer 5 | . 5 . . . Grunt 4 | . 3 . . 1 Brawler 2 | . . . . 2 Sentry 2 | . . . . 2 Programmer 4 | . . . . 4 Subdweller 4 | . . 4 . . Best Kill Streak 3 | 2 3 2 . 2 Combat Bots Only 3 | . 3 2 . 2 Max Kills in Single Turn 1 | 1 1 1 . 1 Gunslinging . | . . . . . Exploded . | . . . . . Melee . | . . . . . Uniques/NPCs Destroyed . | . . . . . Combat | -11 -10 -10 -9 -6 -------- Run | Yrd Mat Sub Scr Fac Hostile Shots Fired 262 | . 41 45 . 176 Missed 90 | . 12 12 . 66 Hits 172 | . 29 33 . 110 Melee 5 | . . . . 5 Projectile 167 | . 29 33 . 105 Critical Strikes 5 | . . 1 . 4 Damage Taken 2447 | . 273 857 . 1317 Core 343 | . 40 203 . 100 Absorbed by Shields . | . . . . . Ignored by Resistances 20 | . . . . 20 Core Remaining (%) 51 | 100 . . 2 . Volleys Fired 134 | 15 49 22 . 48 Largest 2 | 2 2 2 . 2 Hottest 110 | 60 60 45 . 110 Shots Fired 261 | 30 97 44 . 90 Gun 261 | 30 97 44 . 90 Cannon . | . . . . . Launcher . | . . . . . Special . | . . . . . Kinetic 151 | 15 50 44 . 42 Thermal 110 | 15 47 . . 48 Explosive . | . . . . . Electromagnetic . | . . . . . Robot Hit Streak 41 | 9 10 38 . 41 Robot Miss Streak 3 | 2 3 1 . 2 Penetration Max 1 | . . . . 1 Secondary Targets 4 | . 1 1 . 2 Max Gunslinging Chain 1 | . 1 1 . 1 Shots Hit Robots 189 | 18 53 41 . 77 Core Hits 65 | 8 20 10 . 27 Critical Kills 2 | . . . . 2 Critical Parts Destroyed 1 | . . . . 1 Critical Strikes 3 | . . . . 3 Destroy 3 | . . . . 3 Melee Attacks . | . . . . . Impact . | . . . . . Slashing . | . . . . . Piercing . | . . . . . Sneak Attacks . | . . . . . Combat Hostiles . | . . . . . Follow-up Attacks . | . . . . . Damage Inflicted 3039 | 173 531 407 . 1928 Guns 2910 | 173 524 407 . 1806 Cannons . | . . . . . Explosions 122 | . . . . 122 Melee . | . . . . . Ramming 7 | . 7 . . . Kinetic 1532 | 87 230 407 . 808 Thermal 1500 | 86 294 . . 1120 Explosive . | . . . . . Electromagnetic . | . . . . . Impact . | . . . . . Slashing . | . . . . . Piercing . | . . . . . Highest Corruption 2 | . . . . 2 Average Corruption 1 | . . . . 1 Corruption Purged . | . . . . . Corruption Blocked . | . . . . . Effects 3 | . . . . 3 Matter Fused 1 | . . . . 1 Data Loss (minor) 1 | . . . . 1 Data Loss (major) 1 | . . . . 1 Overload Shots . | . . . . . Overflow Damage 75 | . . . . 75 Projectiles . | . . . . . Explosions 75 | . . . . 75 Melee . | . . . . . Knockbacks . | . . . . . Impact . | . . . . . Kinetic . | . . . . . Secondary . | . . . . . Self-Inflicted Damage 77 | . . . . 77 Shots 1 | . . . . 1 Rammed 2 | . 2 . . . Targets Rammed 2 | . 2 . . . Kicked . | . . . . . Crushed . | . . . . . Highest Temperature 58 | 40 58 . . 12 Average Temperature 19 | 18 21 . . 6 Received Heat Transfer 576 | . 78 210 . 288 Siege Activations . | . . . . . Martial Activations . | . . . . . Shielding Activations . | . . . . . Robots Disrupted . | . . . . . Combat Hostiles . | . . . . . Robots Corrupted . | . . . . . Combat Hostiles . | . . . . . Parts Fried . | . . . . . Impact Corruptions . | . . . . . Robots Melted . | . . . . . Combat Hostiles . | . . . . . Parts Melted 6 | . . . . 6 Heat Transferred 2425 | 200 675 . . 1550 Parts Sabotaged . | . . . . . Parts Stolen . | . . . . . Parts Stripped . | . . . . . Power Chain Reactions . | . . . . . Alert | -11 -10 -10 -9 -6 ------- Run | Yrd Mat Sub Scr Fac Maximum Alert Level 1 | . . . . 1 Low Security (%) 98 | 100 100 . . 94 Level 1 1 | . . . . 5 Level 2 . | . . . . . Level 3 . | . . . . . Level 4 . | . . . . . Level 5 . | . . . . . High Security . | . . . . . Max Security . | . . . . . Peak Influence 211 | 10 90 . . 211 Initial . | . . . . . Average 36 | . 40 . . 70 Influence Increases 662 | 25 233 . . 404 Destroy 0b10 Robot/C 340 | . 160 . . 180 Destroy 0b10 Robot/NC 50 | 25 15 . . 10 Destroy Leader 106 | . 46 . . 60 Successful Hack 31 | . 12 . . 19 Disable Machine 90 | . . . . 90 Destroy Structure 45 | . . . . 45 Influence Decreases 467 | 25 233 . . 209 Time Decay 447 | 25 233 . . 189 Lost Part 20 | . . . . 20 Squads Dispatched 6 | . 2 . . 4 Investigation . | . . . . . Extermination 2 | . . . . 2 Reinforcement 4 | . 2 . . 2 Assault . | . . . . . Garrison . | . . . . . Intercept . | . . . . . Searches Triggered . | . . . . . Construction Impeded 1 | . . . . 1 Haulers Reinforced . | . . . . . Active Scanning Responses . | . . . . . Cargo Convoy Interrupts . | . . . . . Stealth | -11 -10 -10 -9 -6 --------- Run | Yrd Mat Sub Scr Fac Distress Signals 2 | . 2 . . . Communications Jammed . | . . . . . Distress Signals . | . . . . . Times Spotted 33 | . 18 6 . 9 Peak Tracking Total 4 | . 4 2 . 3 Tactical Retreats . | . . . . . Traps | -11 -10 -10 -9 -6 ------- Run | Yrd Mat Sub Scr Fac Traps Triggered 1 | . . . . 1 Indirectly . | . . . . . Trap Hack Attempts . | . . . . . Triggered . | . . . . . Disarmed . | . . . . . Reprogrammed . | . . . . . Reused . | . . . . . Traps Extracted . | . . . . . Installed . | . . . . . Triggered . | . . . . . Machines | -11 -10 -10 -9 -6 ---------- Run | Yrd Mat Sub Scr Fac Machines Disabled 6 | . . . . 6 Max in Single Turn 6 | . . . . 6 Machines Repaired . | . . . . . Machines Dismantled . | . . . . . Machines Sabotaged . | . . . . . Overloaded Fab Kills . | . . . . . Hacking | -11 -10 -10 -9 -6 --------- Run | Yrd Mat Sub Scr Fac Machines Accessed 15 | . 3 . 7 5 Terminals 6 | . 3 . . 3 Fabricators . | . . . . . Repair Stations . | . . . . . Recycling Units 1 | . . . . 1 Scanalyzers 1 | . . . . 1 Garrison Access . | . . . . . Total Hacks 72 | . 10 . 51 11 Successful 64 | . 6 . 51 7 Failed 7 | . 3 . . 4 Catastrophic 2 | . . . . 2 Database Lockouts 1 | . 1 . . . Manual 14 | . 7 . . 7 Terminals 17 | . 10 . . 7 Fabricators . | . . . . . Repair Stations . | . . . . . Recycling Units 2 | . . . . 2 Scanalyzers 2 | . . . . 2 Garrison Access . | . . . . . Terminal Hacks 55 | . 3 . 51 1 Record 46 | . . . 46 . Robot Analysis 6 | . 1 . 5 . Branch Access Points 1 | . 1 . . . Locate Traps 1 | . 1 . . . Recall Reinforcements 1 | . . . . 1 Fabricator Hacks . | . . . . . Repair Station Hacks . | . . . . . Recycling Unit Hacks 1 | . . . . 1 Retrieve Components 1 | . . . . 1 Scanalyzer 2 | . . . . 2 Retrieve Study 2 | . . . . 2 Garrison Access Hacks . | . . . . . Unauthorized Hacks 6 | . 3 . . 3 Terminals 6 | . 3 . . 3 Track 1 | . 1 . . . Botnet 3 | . 1 . . 2 Operators 2 | . 1 . . 1 Fabricators . | . . . . . Repair Stations . | . . . . . Recycling Units . | . . . . . Scanalyzers . | . . . . . Garrison Access . | . . . . . Data Cores Recovered . | . . . . . Used . | . . . . . Hacking Detections 8 | . 3 . . 5 Full Trace Events . | . . . . . Feedback Events . | . . . . . Feedback Blocked . | . . . . . Robot Schematics Acquired . | . . . . . Robots Built . | . . . . . Authchips . | . . . . . Time . | . . . . . Total Robot Build Rating . | . . . . . Part Schematics Acquired . | . . . . . Parts Built . | . . . . . Authchips . | . . . . . Time . | . . . . . Total Part Build Rating . | . . . . . Part Studies Acquired 2 | . . . . 2 Parts Repaired . | . . . . . Time . | . . . . . Parts Recycled . | . . . . . Recycled Matter . | . . . . . Retrieved Matter . | . . . . . Retrieved Components 9 | . . . . 9 Parts Scanalyzed . | . . . . . Part Schematics Acquired . | . . . . . Parts Damaged . | . . . . . Bothacking | -11 -10 -10 -9 -6 ------------ Run | Yrd Mat Sub Scr Fac Used RIF Installer . | . . . . . Robots Hacked . | . . . . . Non-combat . | . . . . . Combat . | . . . . . Robot Hacks Applied . | . . . . . Relay Couplers Released . | . . . . . Fabnet Peak Effective % . | . . . . . Robots Rewired . | . . . . . Allies Hacked . | . . . . . Hacks Repelled . | . . . . . Allies | -11 -10 -10 -9 -6 -------- Run | Yrd Mat Sub Scr Fac Total Allies . | . . . . . Largest Group . | . . . . . Highest-Rated Group . | . . . . . Highest-Rated Ally . | . . . . . Initial UFD Resources 23 | . . . . 23 Total Orders . | . . . . . Ally Attacks . | . . . . . Total Damage . | . . . . . Kills . | . . . . . Allies Corrupted . | . . . . . Allies Melted . | . . . . . Intel | -11 -10 -10 -9 -6 ------- Run | Yrd Mat Sub Scr Fac Active Infowar (turns) 1497 | 618 335 156 . 388 Sensors 388 | . . . . 388 Terrain 76 | . 76 . . . Seismic 1391 | 618 259 156 . 358 Robot Analysis Total 6 | . 1 . 5 . Derelict Logs Recovered 6 | . . 1 5 . Drone Launches . | . . . . . Drone Recoveries . | . . . . . Exploration | -11 -10 -10 -9 -6 ------------- Run | Yrd Mat Sub Scr Fac Turns Passed 5221 | 694 583 473 2803 668 Spaces Moved 2548 | 48 187 241 1677 395 Core . | . . . . . Treads 2105 | 32 187 229 1656 1 Legs 16 | 16 . . . . Wheels 427 | . . 12 21 394 Hover . | . . . . . Flight . | . . . . . Fastest Speed 95 | 120 160 120 120 95 Average Speed 154 | 146 160 158 165 105 Slowest Speed 320 | 160 160 160 240 320 Overloaded Moves . | . . . . . Propulsion Burnouts . | . . . . . Robots Hopped . | . . . . . Potential Cave-ins . | . . . . . Cave-ins Triggered . | . . . . . Exploration Rate (%) 32 | 4 42 16 90 12 Regions Visited 4 Branch Regions 2 Pre-discovered Areas 4 | . . 1 3 . Known Exits Taken . | . . . . . Unknown Exits Taken 4 | 1 1 1 1 . Scrap Searched 6 | . . 1 5 . Spaces Dug . | . . . . . Terrain Destroyed 44 | . . . . 44 Melee . | . . . . . Projectile . | . . . . . AOE 44 | . . . . 44 Terrain Rammed . | . . . . . Walls Destroyed . | . . . . . Machines Disabled . | . . . . . Actions | -11 -10 -10 -9 -6 --------- Run | Yrd Mat Sub Scr Fac Total 3591 | 645 387 297 1709 553 Wait 769 | 572 123 10 . 64 Move 2544 | 47 186 240 1676 395 Hop . | . . . . . Pick Up 50 | 4 13 9 15 9 Fast Attach 4 | 1 . . . 3 Attach 22 | 2 1 7 2 10 Detach 1 | . . . . 1 Swap 29 | 1 5 5 4 14 Drop 36 | 3 8 4 12 9 Fire 134 | 15 49 22 . 48 Melee . | . . . . . Ram . | . . . . . Kick . | . . . . . Crush 2 | . 2 . . . Escape Stasis . | . . . . . Rewire . | . . . . . Trap . | . . . . . Miscellaneous . | . . . . . Route ------- -11/Scrapyard -10/Materials (discovered 3 exits: [*Mat] / Min / [*Sub]) -10/Subcaves (discovered 2 exits: [*Mat] / *Scr) -9/Scraptown (discovered 2 exits: *Fac x2) -6/Factory (discovered 3 exits: *Fac x2 / Low) History --------- Turn | Location | Event 17 | -11/Scrapyard | Discovered new exit (range 3) 695 | -11/Scrapyard | Entered Materials 696 | -10/Materials | Build established: Mutant 716 | -10/Materials | Identified exit to Mines 730 | -10/Materials | Central database locked down 1081 | -10/Materials | Discovered new exit (range 16) 1265 | -10/Materials | Discovered new exit (range 7) 1278 | -10/Materials | Entered Subcaves 1279 | -10/Subcaves | Approached by a straggling Scientist 1356 | -10/Subcaves | Core integrity fell below 50% 1393 | -10/Subcaves | Learned location of Zion (-7) 1398 | -10/Subcaves | Lost 3 parts (1p1n1w) 1398 | -10/Subcaves | Discovered new exit (range 5) 1573 | -10/Subcaves | Shifting Twisted Machinery released Mak. Axe 1576 | -10/Subcaves | Shifting Twisted Machinery released Sub. Laser 1584 | -10/Subcaves | Lost 3 parts (1p1n1u) 1729 | -10/Subcaves | Ambushed by Subdweller buried in earth 1729 | -10/Subcaves | Ambushed by Subdweller buried in earth 1730 | -10/Subcaves | Core integrity fell below 20% 1751 | -10/Subcaves | Entered Scraptown 2148 | -9/Scraptown | Scanned Subdweller tech in exchange for log data 2151 | -9/Scraptown | Learned location of 1 exit from Factory 2155 | -9/Scraptown | Learned location of 1 exit from Research 2156 | -9/Scraptown | Learned 8 Research zone layouts 2174 | -9/Scraptown | Discovered new exit (range 11) 2300 | -9/Scraptown | Visited Shadow of the Wyrm 2359 | -9/Scraptown | Visited Red Mages 2438 | -9/Scraptown | Visited Cyclists 2668 | -9/Scraptown | Visited Fellowship of the Rings 2718 | -9/Scraptown | Visited UFD Registry 2753 | -9/Scraptown | Visited TADAMA 2780 | -9/Scraptown | Visited Awakened 2867 | -9/Scraptown | Registered with UFD as "Spikecutter" 2931 | -9/Scraptown | Entered Cyclist Reading Room 3033 | -9/Scraptown | Visited Analyses Database 3102 | -9/Scraptown | Visited Scrap Suit Storage 3159 | -9/Scraptown | Visited Chapter 10 3227 | -9/Scraptown | Visited Derelict Rescue Squad 3238 | -9/Scraptown | Found DRS Beacon 3272 | -9/Scraptown | Visited Junk Repository 3306 | -9/Scraptown | Visited A0-MCA Data Center 3315 | -9/Scraptown | Given an A- rating by A0-MCA 3343 | -9/Scraptown | Visited DA-N13 Charitable Foundation 3357 | -9/Scraptown | Found DCF Scrap (28 items) 3426 | -9/Scraptown | Visited LU-1G1's Boring Crew 3749 | -9/Scraptown | Found A0-MCA's Component Scanner 4234 | -9/Scraptown | Visited Botcube Research 4251 | -9/Scraptown | Found Botcube 4422 | -9/Scraptown | Met Optimus 4422 | -9/Scraptown | Accepted into 0bPrime 4549 | -9/Scraptown | Discovered new exit (range 3) 4554 | -9/Scraptown | Entered Factory 4554 | -6/Factory | Evolved 8 slots: Propulsion x4, Utility x4 4555 | -6/Factory | Identified exit to Lower Caves 4556 | -6/Factory | Identified exit to Factory 4856 | -6/Factory | Build established: Derelict-Mutant 4940 | -6/Factory | Discovered exit to Factory (range 16) 5222 | -6/Factory | Self-destructed Last Messages --------------- 05176_ P-60 Hacker destroyed. 05176_ K-01 Serf collects debris. 05177_ R-10 Processor collects Gravmag System. 05177_ K-01 Serf collects debris. 05180_ Acquired 46 matter. 05183_ ALERT: Hostiles spotted, dispatching reinforcements to Terminal F014. 05193_ K-01 Serf collects debris. 05222_ Connecting with Recycling Unit... >>Retrieve(Components) Retrieving 9 components... Adv. Salvage Targeting Computer Hrd. Light Armor Plating Lrn. Proton Cannon Enh. Gauss Cannon Gravmag System Lgt. Treads Imp. Light Armor Plating Lgt. Treads Gravmag System Map ----- +----------------------------------------------------+ | ?????????????????????????????????# #![ ## | | ?????????????????????????????????# +*[ ## | | ?????????????????????????? ??????# [#! ## | | ?????????????????????????? ""????# # ## | | ?????????????????????????? """ ??# # % ## | | ????????????????????????# """ # # "T" ## | | ????????????????????????# / #%[ """ ## | | ????????????????????????# """ # + ## | | ?????????????????????????? """ # ######## ## | | ?????????????????????????? ""? ?# ########### | | ?????????????????????????? ?? ??# ## # | | ????????????????????????????""???# ## # | | ?????????????????????????????????# ## # | | ?????????????????????????????????# ## # | | ?????????????????????????????????# ## # | | ????????????????????????????###### ## + | | ????????????????????????????# ## # | | ????????????????????????????# + # | | ????????????????????????????# ## # | | ???????????????????########## ###+############+# | | ???????????????????# # # #??????? | | ???????????????????# """ # # #??????? | | ???????????????????# """ + + ! #??????? | | ???????????????????# """] R# # #??????? | | ???????????????????#! !=]R # # #??????? | | ???????????????????# ="@"!# # """ """ #??????? | | ???????????????????# ! "Y" + # """ """ #??????? | | ???????????????????# """ ##### """ """ #??????? | | ???????????????????# #???#########?#??????? | | ???????????????????##########????????????????????? | | ?????????????????????????????????????????????????? | | ?????????????????????????????????????????????????? | | ?????????????????????????????????????????????????? | | ?????????????????????????????????????????????????? | | ?????????????????????????????????????????????????? | | ?????????????????????????????????????????????????? | | ?????????????????????????????????????????????????? | | ?????????????????????????????????????????????????? | | ?????????????????????????????????????????????????? | | ?????????????????????????????????????????????????? | | ?????????????????????????????????????????????????? | | ?????????????????????????????????????????????????? | | ?????????????????????????????????????????????????? | | ?????????????????????????????????????????????????? | | ?????????????????????????????????????????????????? | | ?????????????????????????????????????????????????? | | ?????????????????????????????????????????????????? | | ?????????????????????????????????????????????????? | | ?????????????????????????????????????????????????? | | ?????????????????????????????????????????????????? | +----------------------------------------------------+ Best States ------------- Heat Dissipation 56 Energy Generation 15 Energy Capacity 250 Matter Stores 500 Matter Capacity 500 Sight Range 16 Robot Scan Range 16 Terrain Scan Range 16 Terrain Scan Density 10 Armor Coverage 675 Resistance: EM 20 Evasion (%) 50 Targeting Accuracy 8 Recoil Reduction 4 Item Schematics ----------------- None Robot Schematics ------------------ None Fabricated ------------ Nothing Repaired ---------- Nothing Studied --------- Coil Gun | -6/Factory | Hacked Arm. Wheel | -6/Factory | Hacked Alien Tech Used ----------------- None Achievements -------------- None Challenges ------------ None Game ------ Seed DataMultitargetingStabilizer Manual? 0 Play Time 00:46:50 Cumulative 208.1 hours Start 2026.08.29 @ 13:28:36 End 2026.09.05 @ 17:41:43 Sessions 4 Manual Loads 0 Difficulty Rogue Special Mode None Game No. 76 Rogue 76 Adventurer 0 Explorer 0 Win Type - Total 10 Types 7/0/2/1/0/0/0/0/0/0 Lore% 68 Gallery% 65 Achievement% 58 Wizard Run 0 Options --------- Layout 0 ASCII 0 Keyboard 0 Movement Arrows Keybinds 0 Fullscreen 2 Font 18/Terminus Map View 76x50 Zoom Use 0% Tactical HUD 1 Map Filters NONE Filters NONE Steam 1 RUN: fb7e6133-d64f-4650-855b-6800c9d9dbeb